bitfinex/quotes_SOLUSD_20250922
["timestamp","ask_amount","ask_price","bid_price","bid_amount"]
[1758521933078,0.2,224.91,224.89,0.66]
[1758521933282,0.2,224.91,224.9,0.66]
[1758521933855,0.2,224.91,224.82,20.66]
[1758521934068,0.55580257,224.9,224.82,0.66]
[1758521934860,0.55580257,224.9,224.81,20.0]
[1758521935273,0.55580257,224.9,224.82,0.66]
[1758521935773,0.55580257,224.9,224.77,0.66]
[1758521935774,0.22237,224.86,224.77,0.66]
[1758521935965,0.55592617,224.85,224.77,0.66]
[1758521936767,0.55592617,224.85,224.77,20.66]
[1758521936969,0.22237,224.86,224.79,20.0]
[1758521938370,0.22237,224.86,224.8,0.65]
[1758521938569,0.22237,224.86,224.83,20.0]
[1758521938872,0.2,224.91,224.87,20.0]
[1758521939468,0.75577786,224.91,224.83,20.65]
[1758521939978,0.75577786,224.91,224.83,0.65]
[1758521940182,0.75577786,224.91,224.84,20.0]
[1758521940356,0.2,224.91,224.85,0.65]
[1758521940556,0.75577786,224.91,224.85,0.65]
[1758521941459,0.2,224.91,224.89,20.0]
[1758521941668,0.2,224.91,224.9,0.65]
[1758521943368,0.2,224.91,224.87,20.0]
[1758521943573,0.2,224.91,224.86,54.86]
[1758521943772,0.55580257,224.9,224.83,20.0]
[1758521943969,0.2,224.91,224.87,20.0]
[1758521944174,0.2,224.91,224.86,20.0]
[1758521944491,0.2,224.91,224.87,0.65]
[1758521944864,0.2,224.91,224.88,20.65]
[1758521945066,0.2,224.91,224.9,20.0]
[1758521945581,0.2,224.91,224.9,20.65]
[1758521946784,0.1,224.96,224.95,20.0]
[1758521947185,0.1,224.96,224.95,20.65]
[1758521947785,0.1,224.96,224.95,75.37]
[1758521947966,0.1,224.96,224.95,20.65]
[1758521948291,0.1,224.96,224.94,54.68]
[1758521948794,0.1,224.96,224.95,0.65]
[1758521948970,0.2,225.01,224.99,20.0]
[1758521949175,0.2,225.01,225.0,0.65]
[1758521951787,0.2,225.05,225.04,20.0]
[1758521951992,0.2,225.05,225.04,74.54]
[1758521952288,0.2,225.05,225.04,74.52]
[1758521952484,0.2,225.05,224.97,0.71]
[1758521952485,0.2,225.05,225.02,20.0]
[1758521952687,0.2,225.05,225.03,54.52]
[1758521952868,0.2,225.05,225.04,20.0]
[1758521954289,0.2,225.05,225.04,54.46]
[1758521954585,0.2,225.05,225.04,54.44]
[1758521955289,0.2,225.05,225.04,74.44]
[1758521955669,0.2,225.05,225.04,20.0]
[1758521956082,0.72,225.22,225.13,20.0]
[1758521956394,0.72,225.19,225.13,74.38]
[1758521956889,0.82,225.14,225.13,54.38]
[1758521957195,0.1,225.14,225.13,54.38]
[1758521958795,0.82,225.14,225.13,54.38]
[1758521958977,0.1,225.14,225.13,54.38]
[1758521961906,0.1,225.14,225.13,54.98]
[1758521963107,0.1,225.14,225.13,68.36]
[1758521963399,0.1,225.14,225.13,13.98]
[1758521963604,0.1,225.14,225.13,0.6]
[1758521963798,0.1,225.14,225.13,54.1]
[1758521964179,0.1,225.14,225.13,68.08]
[1758521965382,0.1,225.14,225.13,94.8]
[1758521966786,0.1,225.14,225.13,54.7]
[1758521967579,0.1,225.14,225.13,94.8]
[1758521969208,0.69,225.31,225.29,20.0]
[1758521969413,0.69,225.35,225.31,20.0]
[1758521969601,0.1,225.37,225.32,53.88]
[1758521969602,0.69,225.34,225.32,53.88]
[1758521969990,0.1,225.37,225.35,20.0]
[1758521970310,0.1,225.37,225.36,53.86]
[1758521972295,0.79,225.37,225.35,20.0]
[1758521972495,0.1,225.37,225.36,53.76]
[1758521973009,0.79,225.37,225.36,53.76]
[1758521973411,0.79,225.37,225.33,20.0]
[1758521973710,0.79,225.37,225.16,20.0]
[1758521973711,0.69,225.36,225.26,20.0]
[1758521973898,1.2446927,225.35,225.27,53.7]
[1758521974100,0.69,225.34,225.27,53.7]
[1758521974300,1.24474193,225.33,225.27,53.7]
[1758521974607,0.69,225.32,225.27,53.7]
[1758521974808,0.69,225.31,225.27,53.7]
[1758521975017,0.1,225.37,225.27,53.7]
[1758521975018,0.69,225.3,225.27,53.7]
[1758521975210,0.69,225.33,225.27,53.7]
[1758521975405,0.1,225.37,225.27,53.7]
[1758521975406,0.1,225.37,225.36,20.0]
[1758521975717,0.1,225.37,225.36,53.64]
[1758521975911,0.79,225.37,225.36,53.64]
[1758521976409,0.79,225.37,225.15,20.0]
[1758521976410,0.79,225.37,225.35,53.62]
[1758521976610,0.69,225.36,225.34,53.62]
[1758521976794,0.69,225.35,225.34,53.62]
[1758521977402,0.1,225.37,225.34,73.62]
[1758521977599,0.1,225.37,225.36,20.0]
[1758521978314,0.79,225.37,225.36,20.0]
[1758521978715,0.1,225.37,225.36,20.0]
[1758521981002,0.1,225.37,225.36,20.6]
[1758521981210,0.1,225.37,225.36,33.98]
[1758521983224,0.1,225.37,225.36,60.7]
[1758521984006,1e-08,225.37,225.36,60.7]
[1758521986121,1e-08,225.37,225.36,113.94]
[1758521987012,1e-08,225.37,225.36,60.7]
[1758521987214,1e-08,225.37,225.36,86.58]
[1758521987532,1e-08,225.37,225.36,73.2]
[1758521987720,0.69000001,225.37,225.34,20.0]
[1758521987917,0.69,225.36,225.35,53.16]
[1758521988920,0.69,225.36,225.35,53.12]
[1758521989927,0.69,225.36,225.35,53.1]
[1758521990932,0.69,225.36,225.34,20.0]
[1758521991110,0.69,225.35,225.3,20.0]
[1758521991308,0.69,225.34,225.31,53.04]
[1758521991506,0.69,225.33,225.31,53.04]
[1758521991706,0.69,225.32,225.31,53.04]
[1758521991905,0.69,225.32,225.24,20.0]
[1758521992107,0.69,225.31,225.24,20.0]
[1758521992329,0.69,225.3,225.25,53.02]
[1758521992504,2.0273,225.35,225.3,20.0]
[1758521992709,2.0273,225.35,225.33,20.0]
[1758521992929,2.0273,225.35,225.34,53.0]
[1758521993229,2.0273,225.35,225.33,20.0]
[1758521993405,2.7173,225.35,225.34,52.98]
[1758521993922,2.7173,225.35,225.34,52.96]
[1758521994429,2.7173,225.35,225.34,72.96]
[1758521994630,2.7173,225.35,225.34,52.96]
[1758521995540,2.0273,225.35,225.34,72.96]
[1758521995716,2.7173,225.35,225.34,52.96]
[1758521995917,2.7173,225.35,225.34,52.88]
[1758521996232,2.7173,225.35,225.34,51.89]
[1758521996746,30.29299041,225.49,225.34,74.02823348]
[1758521996930,30.85539027,225.65,225.48,24.58591267]
[1758521997241,15.85447528,225.65,225.53,17.21031978]
[1758521997431,13.35262045,225.64,225.55,17.21031978]
[1758521997629,13.35262045,225.64,225.56,2.9503206]
[1758521997815,13.35262045,225.64,225.57,2.9503206]
[1758521998019,13.35262045,225.64,225.58,2.9503206]
[1758521998216,13.35262045,225.64,225.59,2.9503206]
[1758521998439,13.35262045,225.64,225.6,2.9503206]
[1758521998737,13.35262045,225.64,225.38,52.84]
[1758521998738,13.35262045,225.64,225.61,2.9503206]
[1758521998919,31.2,225.61,225.57,12.30840783]
[1758521999234,31.2,225.61,225.58,2.95400344]
[1758521999421,31.2,225.61,225.36,17.21031978]
[1758521999621,31.2,225.61,225.58,9.85686074]
[1758522000018,31.2,225.6,225.59,9.85686074]
[1758522000334,31.2,225.61,225.35,52.78]
[1758522000528,31.2,225.61,225.58,9.86234423]
[1758522000729,31.2,225.61,225.57,9.86234423]
[1758522000913,31.2,225.61,225.26,17.21031978]
[1758522001112,31.2,225.61,225.22,49.28]
[1758522001329,13.38,225.6,225.56,7.40060163]
[1758522001569,13.21960311,225.6,225.58,4.93453492]
[1758522001713,13.21960311,225.6,225.59,3.70202755]
[1758522001714,15.54306107,225.6,225.59,3.70202755]
[1758522001913,31.2,225.54,225.53,4.93453492]
[1758522002119,97.09960311,225.54,225.51,4.93453492]
[1758522002314,31.2,225.49,225.46,4.93453492]
[1758522002539,65.87960311,225.48,225.47,3.70105359]
[1758522003033,65.87960311,225.48,225.18,31.95746718]
[1758522003034,83.86,225.48,225.18,31.95746718]
[1758522003337,31.2,225.44,225.18,31.95746718]
[1758522004026,31.2,225.4,225.18,31.95746718]
[1758522004335,70.78,225.4,225.18,31.95746718]
[1758522004636,70.78,225.4,225.32,3.69880211]
[1758522004936,70.78,225.4,225.09,22.6631087]
[1758522004937,70.78,225.4,225.31,3.69880211]
[1758522005134,2.3247534,225.39,225.32,3.69880211]
[1758522005314,2.3247534,225.39,225.29,3.69880211]
[1758522005642,33.5247534,225.39,225.29,3.69880211]
[1758522005842,2.3247534,225.39,225.32,3.69880211]
[1758522006035,31.2,225.35,225.34,3.69880211]
[1758522006214,83.76,225.35,225.33,3.69880211]
[1758522006539,83.76,225.35,225.06,22.21331753]
[1758522006841,31.2,225.35,225.06,22.21331753]
[1758522007150,46.48,225.34,225.06,22.21331753]
[1758522007359,31.2,225.31,225.06,22.21331753]
[1758522007650,31.2,225.3,225.06,42.21331753]
[1758522007850,13.36809037,225.33,225.11,42.26314548]
[1758522008224,13.36809037,225.33,225.1,22.21021041]
[1758522008424,31.2,225.3,225.06,22.21331753]
[1758522010433,70.57748865,225.3,225.0,22.47073442]
[1758522010636,31.2,225.3,225.01,0.66]
[1758522010838,31.2,225.3,225.02,42.84920927]
[1758522011138,31.2,225.3,225.05,22.70647374]
[1758522011345,13.36809037,225.33,225.07,22.87471444]
[1758522011653,26.84048924,225.33,225.09,22.6631087]
[1758522011941,13.36809037,225.33,225.11,42.26314548]
[1758522012245,13.36809037,225.33,225.12,2.94559634]
[1758522012246,31.2,225.3,225.12,2.94559634]
[1758522012421,26.93778694,225.33,225.13,22.94559634]
[1758522012616,13.36809037,225.33,225.14,2.94559634]
[1758522012837,13.36809037,225.33,225.11,22.26314548]
[1758522012838,13.36809037,225.33,225.15,2.94559634]
[1758522013043,13.36809037,225.33,225.16,2.94559634]
[1758522013244,31.2,225.3,225.17,2.94559634]
[1758522013441,31.2,225.3,225.12,22.2432513]
[1758522013442,31.2,225.3,225.18,2.94559634]
[1758522013632,31.2,225.3,225.19,2.94559634]
[1758522013936,26.4212223,225.33,225.2,2.94559634]
[1758522014144,26.4212223,225.33,225.21,2.94559634]
[1758522014331,26.4212223,225.33,225.22,2.94559634]
[1758522014332,31.2,225.3,225.22,2.94559634]
[1758522014538,26.4212223,225.33,225.23,2.94559634]
[1758522014738,26.4212223,225.33,225.24,2.94559634]
[1758522014938,26.4212223,225.33,225.25,2.94559634]
[1758522015148,26.4212223,225.33,225.26,2.94559634]
[1758522015464,28.74548272,225.33,225.27,2.94559634]
[1758522015633,28.74548272,225.33,225.28,2.94559634]
[1758522015634,26.4212223,225.33,225.28,2.94559634]
[1758522015952,26.4212223,225.33,225.29,2.94559634]
[1758522016147,26.4212223,225.33,225.2,0.71]
[1758522016929,31.2,225.3,225.2,0.71]
[1758522019531,31.2,225.3,225.21,20.0]
[1758522020035,31.2,225.3,225.2,0.71]
[1758522020347,31.2,225.3,225.21,20.0]
[1758522020545,22.46166587,225.66,225.25,20.0]
[1758522020739,2.32367091,225.43,225.27,20.0]
[1758522020937,2.32046396,225.57,225.29,20.0]
[1758522021150,2.32046396,225.57,225.29,48.32]
[1758522021454,2.32335974,225.55,225.29,48.32]
[1758522021655,31.2,225.42,225.25,0.71]
[1758522021866,31.2,225.38,225.18,52.04]
[1758522022354,31.2,225.36,225.18,52.04]
[1758522022739,51.2,225.36,225.1,7.34884143]
[1758522022933,31.2,225.3,225.11,52.0]
[1758522023151,31.2,225.3,225.09,52.0]
[1758522023544,31.2,225.26,225.09,52.0]
[1758522023746,31.2,225.26,225.1,0.71]
[1758522025559,31.2,225.22,225.1,0.71]
[1758522026767,19.93914477,225.22,225.13,7.34884143]
[1758522026962,19.93914477,225.22,225.13,0.67]
[1758522027456,4.44030016,225.21,225.13,8.01884143]
[1758522027664,19.93914477,225.22,225.14,8.01884143]
[1758522027838,19.93914477,225.22,225.15,0.67]
[1758522028248,19.93914477,225.22,225.16,2.94297816]
[1758522028565,19.93914477,225.22,225.11,7.34884143]
[1758522028856,31.2,225.18,225.11,7.34884143]
[1758522029059,31.2,225.18,225.12,0.67]
[1758522029440,37.73082385,225.28,225.12,8.01884143]
[1758522029441,23.69239284,225.23,225.12,8.01884143]
[1758522029638,23.69239284,225.23,225.13,8.01884143]
[1758522029639,15.54036053,225.22,225.13,8.01884143]
[1758522029840,37.74087558,225.22,225.13,8.01884143]
[1758522030141,4.44010301,225.22,225.17,7.34884143]
[1758522030760,4.44010301,225.22,225.16,7.34884143]
[1758522030959,4.44010301,225.22,225.17,7.34884143]
[1758522031268,15.54036053,225.22,225.18,8.01884143]
[1758522031583,35.64069452,225.19,225.18,0.67]
[1758522031745,4.44069452,225.19,225.14,51.7]
[1758522031940,4.44069452,225.19,225.15,51.7]
[1758522032140,4.44069452,225.19,225.16,51.68]
[1758522032336,4.44069452,225.19,225.17,0.67]
[1758522032561,4.44069452,225.19,225.18,0.67]
[1758522033554,11.10163633,225.2,225.0,33.5817577]
[1758522033555,19.97946094,225.24,225.16,51.64]
[1758522033755,22.19519024,225.28,225.13,0.67]
[1758522033756,31.2,225.25,225.13,0.67]
[1758522034249,31.2,225.25,225.09,51.62]
[1758522035265,31.81,225.25,225.1,0.67]
[1758522035650,31.2,225.24,225.07,0.67]
[1758522036165,0.61,225.23,225.07,0.67]
[1758522037268,20.0,225.19,224.99,59.00641204]
[1758522037444,0.67,225.18,224.99,110.50641204]
[1758522037644,0.67,225.17,224.99,110.50641204]
[1758522037951,65.16377195,225.24,225.0,0.67]
[1758522038850,31.2,225.14,225.0,0.67]
[1758522039250,31.2,225.14,224.99,59.00641204]
[1758522039455,31.2,225.14,224.99,43.12091481]
[1758522039670,31.2,225.1,224.99,11.34992035]
[1758522039966,31.2,225.1,224.97,36.02]
[1758522039967,31.2,225.08,224.92,51.62]
[1758522040169,0.67,225.07,224.92,51.62]
[1758522040382,31.87,225.06,224.91,1e-08]
[1758522040760,31.2,225.02,224.91,1e-08]
[1758522040962,31.2,225.04,224.91,1e-08]
[1758522041348,0.67,225.03,224.91,1e-08]
[1758522042755,0.67,225.03,224.92,0.67]
[1758522042756,1.33321482,225.02,224.92,0.67]
[1758522042962,11.99893341,225.02,224.92,0.67]
[1758522043560,6.66607412,225.02,224.92,0.67]
[1758522044076,11.33081536,225.05,224.92,0.67]
[1758522044784,31.2,225.02,224.92,0.67]
[1758522045283,11.33081536,225.05,224.92,0.67]
[1758522045575,9.99777826,225.05,224.92,0.67]
[1758522045775,31.2,225.02,224.92,0.67]
[1758522046564,31.87,225.02,224.92,0.67]
[1758522046874,31.87,225.02,224.91,1e-08]
[1758522047676,31.2,224.98,224.91,1e-08]
[1758522048056,0.67,224.97,224.91,1e-08]
[1758522048762,0.67,224.97,224.83,0.2]
[1758522048956,0.67,224.96,224.83,0.2]
[1758522050380,31.2,224.94,224.83,0.2]
[1758522050560,0.67,224.93,224.83,0.2]
[1758522051781,0.67,224.93,224.79,68.84081404]
[1758522051782,31.2,224.89,224.79,68.84081404]
[1758522052075,0.67,224.88,224.79,68.84081404]
[1758522052379,0.67,224.9,224.79,68.84081404]
[1758522053762,1.55631641,224.89,224.79,68.84081404]
[1758522054100,3.77962558,224.89,224.79,68.84081404]
[1758522054282,3.77962558,224.89,224.8,0.67]
[1758522055962,3.77962558,224.89,224.79,68.84081404]
[1758522055963,0.67,224.88,224.79,68.84081404]
[1758522056169,0.67,224.87,224.79,40.96346998]
[1758522056486,0.67,224.86,224.79,1e-08]
[1758522057566,31.2,224.83,224.79,1e-08]
[1758522058161,0.71,224.82,224.79,1e-08]
[1758522059180,31.2,224.83,224.79,1e-08]
[1758522059568,0.71,224.82,224.79,1e-08]
[1758522060196,0.71,224.81,224.79,1e-08]
[1758522060680,0.71,224.8,224.79,1e-08]
[1758522061622,0.71,224.8,224.67,0.72]
[1758522061960,0.71,224.8,224.66,0.72]
[1758522062161,31.2,224.78,224.64,6.03773379]
[1758522062363,0.71,224.77,224.64,6.03773379]
[1758522062703,0.71,224.76,224.64,6.03773379]
[1758522062862,2.32532709,225.05,224.65,0.72]
[1758522062863,0.71,224.75,224.65,0.72]
[1758522063062,0.71,224.74,224.64,6.03773379]
[1758522064275,31.2,224.77,224.64,6.03773379]
[1758522064479,6.75845806,224.86,224.64,6.03773379]
[1758522064686,0.71,224.79,224.64,6.03773379]
[1758522065164,0.71,224.83,224.65,0.72]
[1758522066410,6.18557454,224.94,224.65,0.72]
[1758522066698,0.71,224.93,224.65,0.72]
[1758522067405,0.71,224.93,224.66,50.58]
[1758522067607,0.71,224.93,224.67,0.72]
[1758522067903,31.2,224.91,224.67,0.72]
[1758522068105,0.71,224.9,224.67,0.72]
[1758522068521,31.2,224.88,224.67,0.72]
[1758522068812,0.71,224.87,224.67,0.72]
[1758522069486,30.91,224.88,224.67,0.72]
[1758522071627,0.66,224.87,224.67,0.72]
[1758522073014,0.66,224.87,224.64,6.03773379]
[1758522073015,31.2,224.84,224.64,6.03773379]
[1758522073314,50.42,224.94,224.64,6.03773379]
[1758522073315,31.2,224.82,224.64,6.03773379]
[1758522073514,0.66,224.81,224.64,6.03773379]
[1758522073715,0.66,224.8,224.64,6.03773379]
[1758522074012,0.66,224.79,224.64,6.03773379]
[1758522074217,0.66,224.78,224.64,6.03773379]
[1758522074417,31.86,224.77,224.64,6.03773379]
[1758522074715,0.66,224.76,224.64,6.03773379]
[1758522074896,31.2,224.77,224.64,6.03773379]
[1758522074897,0.66,224.75,224.64,6.03773379]
[1758522075097,0.66,224.74,224.41,0.2]
[1758522075292,0.66,224.73,224.49,50.32]
[1758522075517,0.66,224.72,224.49,50.32]
[1758522075722,0.66,224.71,224.49,50.32]
[1758522075920,0.66,224.71,224.42,56.08]
[1758522076223,0.66,224.7,224.41,0.2]
[1758522076423,31.2,224.65,224.41,0.2]
[1758522076601,0.66,224.64,224.41,0.2]
[1758522076806,31.86,224.64,224.41,0.2]
[1758522077004,31.86,224.64,224.46,0.67]
[1758522077405,0.66,224.64,224.46,0.67]
[1758522077616,3.60135373,224.64,224.46,0.67]
[1758522078230,0.66,224.64,224.46,0.67]
[1758522079628,0.66,224.69,224.46,0.67]
[1758522079821,0.66,224.71,224.46,0.67]
[1758522080610,0.66,224.71,224.46,20.67]
[1758522080808,0.66,224.71,224.47,0.67]
[1758522081132,0.66,224.79,224.51,20.0]
[1758522081306,0.66,224.79,224.52,0.67]
[1758522081818,0.66,224.79,224.53,50.12]
[1758522082126,0.66,224.79,224.45,0.2]
[1758522082127,0.66,224.78,224.54,0.67]
[1758522083326,31.2,224.77,224.54,0.67]
[1758522083509,3.60315006,224.76,224.5,0.67]
[1758522084220,31.2,224.72,224.5,0.67]
[1758522084440,3.60315006,224.71,224.5,0.67]
[1758522084929,51.2,224.7,224.46,0.67]
[1758522085127,3.60315006,224.69,224.45,0.2]
[1758522085433,31.2,224.65,224.45,0.2]
[1758522085736,3.60315006,224.64,224.45,0.2]
[1758522086206,31.2,224.61,224.45,0.2]
[1758522086408,31.2,224.59,224.45,0.2]
[1758522086603,2.94315006,224.58,224.45,0.2]
[1758522086823,2.94315006,224.57,224.38,1.17564994]
[1758522087025,4.91990649,224.5,224.33,35.55058933]
[1758522087223,2.22315006,224.49,224.35,22.40594131]
[1758522087423,20.0,224.59,224.34,0.44575198]
[1758522087424,4.91990649,224.48,224.34,72.27809067]
[1758522087641,7.37985974,224.57,224.35,22.85167342]
[1758522087845,7.37985974,224.6,224.35,22.85167342]
[1758522088138,0.45433357,224.63,224.36,62.49529409]
[1758522088313,0.45433357,224.63,224.37,4.45692383]
[1758522088630,31.2,224.61,224.37,4.45692383]
[1758522088943,0.45433357,224.6,224.36,35.77529409]
[1758522089147,0.45433357,224.6,224.36,22.39529409]
[1758522089443,20.0,224.62,224.35,40.24320186]
[1758522089622,31.2,224.57,224.35,26.86323121]
[1758522089820,31.65433357,224.57,224.35,26.86323121]
[1758522090120,31.2,224.55,224.34,22.31809067]
[1758522090324,0.45433357,224.54,224.34,72.17809067]
[1758522090741,0.45433357,224.54,224.35,2.3284965]
[1758522090922,31.2,224.51,224.35,2.3284965]
[1758522091105,31.2,224.49,224.35,2.3284965]
[1758522091306,0.45433357,224.5,224.35,2.3284965]
[1758522091715,0.68,224.49,224.35,2.3284965]
[1758522091918,0.45433357,224.48,224.35,2.3284965]
[1758522092134,0.45433357,224.54,224.33,22.82215655]
[1758522092321,0.45433357,224.54,224.34,24.64688245]
[1758522092916,0.45433357,224.54,224.34,2.32879178]
[1758522093337,51.2,224.52,224.34,2.32879178]
[1758522093514,0.45433357,224.51,224.34,24.64688245]
[1758522093709,31.65433357,224.51,224.34,24.64688245]
[1758522094109,7.37985974,224.61,224.34,2.32879178]
[1758522094333,57.11985974,224.61,224.34,2.32879178]
[1758522094633,7.37985974,224.6,224.34,2.32879178]
[1758522094939,2.3289031,224.63,224.34,2.32879178]
[1758522094940,7.37985974,224.61,224.34,2.32879178]
[1758522095829,49.7,224.6,224.34,2.32879178]
[1758522096138,31.2,224.57,224.34,2.32879178]
[1758522096322,0.68,224.56,224.34,2.32879178]
[1758522096531,0.68,224.55,224.34,2.32879178]
[1758522096828,0.68,224.59,224.35,14.06]
[1758522097031,0.68,224.59,224.36,0.68]
[1758522097236,0.68,224.59,224.37,49.66]
[1758522097643,0.68,224.65,224.38,0.68]
[1758522098244,31.88,224.65,224.34,24.64688245]
[1758522098548,31.2,224.62,224.34,24.64688245]
[1758522098857,0.68,224.61,224.34,2.32879178]
[1758522099017,0.68,224.61,224.35,0.68]
[1758522099213,0.68,224.61,224.35,34.06]
[1758522099420,2.96473905,224.6,224.37,33.38]
[1758522099630,0.68,224.61,224.37,33.38]
[1758522099631,2.96473905,224.59,224.37,33.38]
[1758522099832,2.96473905,224.58,224.43,13.38]
[1758522100057,2.96473905,224.57,224.44,50.26]
[1758522100244,2.96473905,224.56,224.44,50.26]
[1758522100544,2.96473905,224.55,224.44,67.41550454]
[1758522100756,0.68,224.68,224.45,0.68]
[1758522101057,2.96591326,224.67,224.45,0.68]
[1758522101346,3.64591326,224.66,224.45,0.68]
[1758522101516,2.96591326,224.65,224.45,0.68]
[1758522101721,3.64591326,224.64,224.43,49.54]
[1758522101964,2.96591326,224.63,224.43,49.54]
[1758522102140,2.96591326,224.62,224.43,49.54]
[1758522102349,2.96591326,224.61,224.43,49.54]
[1758522102540,3.64591326,224.6,224.43,49.54]
[1758522102746,2.96591326,224.59,224.43,49.54]
[1758522102963,3.64591326,224.58,224.36,0.68]
[1758522103143,2.96591326,224.57,224.36,0.68]
[1758522103349,2.96591326,224.56,224.36,0.68]
[1758522103553,2.96591326,224.55,224.36,0.68]
[1758522103844,2.96591326,224.54,224.34,24.64688245]
[1758522104163,2.96591326,224.53,224.34,24.64688245]
[1758522104356,2.96591326,224.52,224.34,24.64688245]
[1758522104529,0.68,224.53,224.34,24.64688245]
[1758522104530,2.96591326,224.51,224.35,0.68]
[1758522104737,2.96591326,224.5,224.35,23.08594131]
[1758522104930,31.2,224.57,224.35,23.08594131]
[1758522104931,2.96591326,224.49,224.35,23.08594131]
[1758522105137,2.96591326,224.48,224.35,22.40594131]
[1758522105333,7.37985974,224.69,224.41,20.0]
[1758522105533,7.37985974,224.69,224.35,31.2]
[1758522105534,7.37985974,224.73,224.44,33.38]
[1758522105739,7.37985974,224.74,224.45,0.62]
[1758522106036,7.37985974,224.71,224.45,0.62]
[1758522106234,2.32749033,224.79,224.45,0.62]
[1758522106235,31.2,224.69,224.45,0.62]
[1758522106434,7.37985974,224.73,224.45,0.62]
[1758522106685,7.37985974,224.74,224.45,0.62]
[1758522106840,31.2,224.7,224.45,0.62]
[1758522107047,31.2,224.68,224.45,0.62]
[1758522107556,0.68,224.67,224.45,0.62]
[1758522109187,0.68,224.67,224.42,0.62]
[1758522109463,31.2,224.66,224.39,0.62]
[1758522109635,31.2,224.64,224.39,0.62]
[1758522110058,0.68,224.63,224.39,0.62]
[1758522110685,0.68,224.63,224.39,38.45646783]
[1758522110887,0.68,224.63,224.41,33.38]
[1758522111364,0.68,224.62,224.42,0.62]
[1758522113792,0.68,224.62,224.42,49.76]
[1758522113988,0.68,224.61,224.42,49.76]
[1758522114193,0.68,224.6,224.42,0.62]
[1758522114389,0.68,224.6,224.34,15.70879178]
[1758522114390,0.68,224.6,224.39,0.62]
[1758522115396,31.2,224.57,224.37,0.62]
[1758522115600,0.68,224.56,224.37,0.62]
[1758522117184,0.68,224.56,224.37,5.07686245]
[1758522117382,2.9875224,224.55,224.38,0.62]
[1758522117584,2.9875224,224.54,224.38,0.62]
[1758522117784,2.9875224,224.53,224.38,0.62]
[1758522118090,2.9875224,224.52,224.38,0.62]
[1758522118291,2.9875224,224.58,224.38,0.62]
[1758522118491,2.9875224,224.57,224.38,0.62]
[1758522118691,2.9875224,224.56,224.38,0.62]
[1758522118892,2.9875224,224.55,224.38,0.62]
[1758522119193,2.9875224,224.54,224.4,22.23165439]
[1758522119488,2.9875224,224.53,224.41,0.62]
[1758522119694,2.9875224,224.52,224.41,0.62]
[1758522119890,2.9875224,224.51,224.41,0.62]
[1758522120091,2.9875224,224.55,224.41,0.62]
[1758522120396,2.9875224,224.54,224.41,0.62]
[1758522120578,3.7075224,224.53,224.41,0.62]
[1758522120785,2.9875224,224.52,224.42,48.94]
[1758522120988,2.9875224,224.51,224.43,48.92]
[1758522121303,2.9875224,224.5,224.43,48.92]
[1758522121500,36.14,224.75,224.44,0.62]
[1758522121501,2.9875224,224.56,224.44,0.62]